No. of Trans,Dept Family,Entity Name,Cert Date,Supplier Name,Reference,Gross Amt,Group/Department,Type of Expenditure - Subjective Codes
1,DCMS,HE,13/12/2016,Bilfinger Europa Fac Management Ltd,0040109682,"5,796.66 ",Accommodation-Facilities Management,Annual Cyclical Works-Building
2,DCMS,HE,13/12/2016,Bilfinger Europa Fac Management Ltd,0040109682,194.06 ,Accommodation-Facilities Management,Annual Cyclical Works-Building
3,DCMS,HE,13/12/2016,Bilfinger Europa Fac Management Ltd,0040109682,"12,298.42 ",Accommodation-Facilities Management,Annual Cyclical Work M & E
4,DCMS,HE,13/12/2016,Bilfinger Europa Fac Management Ltd,0040109682,"10,690.55 ",Accommodation-Facilities Management,Office Cleaning
5,DCMS,HE,13/12/2016,Bilfinger Europa Fac Management Ltd,0040109682,"6,273.12 ",Accommodation-Facilities Management,Office Security & Cash Collect
6,DCMS,HE,21/12/2016,Capita Secure Information Solutions Ltd,0040109705,"60,564.19 ","Finance, HR & IMT-IMT",COMPUTER FACILITIESP08
7,DCMS,HE,14/12/2016,Capita Secure Information Solutions Ltd,0040109706,"25,898.99 ","Finance, HR & IMT-IMT",COMPUTER FACILITIESP08
8,DCMS,HE,14/12/2016,Capita Secure Information Solutions Ltd,0040109707,"253,185.10 ","Finance, HR & IMT-IMT",COMPUTER FACILITIESP08
9,DCMS,HE,15/12/2016,CB Richard Ellis Ltd,0040109804,"282,600.00 ",Accommodation-Office Estate,ACCOMMODATIONP00
10,DCMS,HE,15/12/2016,CB Richard Ellis Ltd,0040109804,"110,581.50 ",Accommodation-Office Estate,ACCOMMODATIONP00
11,DCMS,HE,15/12/2016,CB Richard Ellis Ltd,0040109806,"95,010.00 ",Accommodation-Office Estate,ACCOMMODATIONP00
12,DCMS,HE,15/12/2016,CB Richard Ellis Ltd,0040109806,"41,747.70 ",Accommodation-Office Estate,ACCOMMODATIONP00
13,DCMS,HE,21/12/2016,CB Richard Ellis Ltd,0040109878,"26,464.11 ",Accommodation-Office Estate,ACCOMMODATIONP00
14,DCMS,HE,21/12/2016,CB Richard Ellis Ltd,0040109878,"35,077.29 ",Accommodation-Office Estate,ACCOMMODATIONP00
15,DCMS,HE,21/12/2016,CB Richard Ellis Ltd,0040109879,"40,202.30 ",Accommodation-Office Estate,Building Service Charges
16,DCMS,HE,21/12/2016,CB Richard Ellis Ltd,0040109879,"122,641.30 ",Accommodation-Office Estate,Building Service Charges
17,DCMS,HE,21/12/2016,Croft Building and Conservation Ltd,0040109709,"56,440.62 ",Planning-Planning Department,Works for Heritage Buildings
18,DCMS,HE,07/12/2016,Derbyshire County Council,0082004509,"50,000.00 ",Planning-Planning Department,GRANTS PAYABLE HISTORIC BUILDINGS
19,DCMS,HE,06/12/2016,EDF,0020071473,"27,195.04 ","Finance, HR & IMT-Corporate",Electricity
20,DCMS,HE,23/12/2016,EDF,0020071494,"28,593.36 ","Finance, HR & IMT-Corporate",Electricity
21,DCMS,HE,06/12/2016,Feilden Clegg Bradley Studios LLP,0040109679,"58,189.88 ",Planning-Planning Department,Fees for Professional Advice
22,DCMS,HE,06/12/2016,Feilden Clegg Bradley Studios LLP,0040109680,"32,633.04 ",Planning-Planning Department,Fees for Professional Advice
23,DCMS,HE,13/12/2016,GeoSLAM Ltd,0040109751,"43,092.00 ",Research-Investigation & Analysis,Plant & Equipment > 10k
24,DCMS,HE,22/12/2016,GVA Grimley Ltd,0040109636,"22,747.50 ",Accommodation-Office Estate,Rent - Operating Leases
25,DCMS,HE,22/12/2016,GVA Grimley Ltd,0040109636,"9,903.60 ",Accommodation-Office Estate,Building Service Charges
26,DCMS,HE,06/12/2016,Harlow Property Management Ltd,0040109637,"54,750.00 ",Accommodation-Office Estate,Rent - Operating Leases
27,DCMS,HE,21/12/2016,Knight Frank LLP,0040109832,"45,353.70 ",Accommodation-Office Estate,Rent - Operating Leases
28,DCMS,HE,21/12/2016,Knight Frank LLP,0040109832,"20,290.86 ",Accommodation-Office Estate,Rent - Operating Leases
29,DCMS,HE,19/12/2016,Oktra Ltd,0040109938,"91,016.40 ","Finance, HR & IMT-Corporate",Furniture and Fittings > 10k
30,DCMS,HE,15/12/2016,Owen Pugh Aggregates Ltd,0082004513,"77,781.00 ",Planning-Planning Department,GRANTS PAYABLE HISTORIC BUILDINGS
31,DCMS,HE,16/12/2016,PCC Of Westbury-on-Severn,0082004515,"106,500.00 ",Planning-Planning Department,GRANTS PAYABLE PLACES OF WORSHIP
32,DCMS,HE,16/12/2016,Plymouth City Council,0082004516,"134,851.00 ",Planning-Planning Department,GRANTS PAYABLE HISTORIC BUILDINGS
33,DCMS,HE,21/12/2016,Ratcliffes,0020071468,"283,500.00 ",Accommodation-Office Estate,Rent - Operating Leases
34,DCMS,HE,20/12/2016,St Alban's DAC,0090514766,"36,944.00 ",Planning-Planning Department,GRANTS PAYABLE OTHER GRANTS
35,DCMS,HE,02/12/2016,St Margaret's Church,0082004508,"120,000.00 ",Planning-Planning Department,GRANTS PAYABLE HISTORIC BUILDINGS
36,DCMS,HE,16/12/2016,The Churches Conservation Trust,0040109856,"31,575.22 ",Engagement-Government Advice Department,GRANTS PAYABLE OTHER GRANTS
37,DCMS,HE,21/12/2016,UK Bell Foundries Ltd,0082004521,"117,936.00 ",Planning-Planning Department,GRANTS PAYABLE HISTORIC BUILDINGS
38,DCMS,HE,23/12/2016,Vodafone Corporate Ltd,0030000361,"31,210.36 ","Finance, HR & IMT-Corporate",Electricity
39,DCMS,HE,16/12/2016,War Memorials Trust,0090514759,"134,375.00 ",Planning-Planning Department,GRANTS PAYABLE OTHER GRANTS
40,DCMS,HE,16/12/2016,Westacre Estate Management,0082004518,"40,000.00 ",Planning-Planning Department,GRANTS PAYABLE HISTORIC BUILDINGS
